{"text_format":"1","workbook":"xlsx","n_sheets":2,"sheets":["Dokonaj wyboru","Załącznik 4a"],"not_rendered":{"charts":0,"images":1,"macros":1,"external_links":1,"defined_names":2,"comments":0,"pivot_tables":0},"unopened":[],"bounds":{"document_bytes":16777216,"sheet_cells":100000,"rows_first":2000,"rows_last":500,"rows_between":2000,"halvings":0,"cell_chars":16384,"cell_head_chars":4096},"cells_cut":0,"cells_raw":0,"read":"whole","date_system":"1900"}

{"sheet":"Dokonaj wyboru","index":0,"n_rows":51,"n_cols":12,"rows_kept":51,"cut":false,"hidden":false,"merged":[[33,0,33,5],[34,0,34,5],[35,0,35,5],[41,7,41,9],[1,0,1,4],[1,7,1,9],[2,0,2,4],[7,0,7,2],[18,7,18,9]]}
[null,"Kalkulator czujników"]
["w ramach dofinansowania MEN na pracownie przyrodnicze",null,null,null,null,null,null,"CHEMIA",null,null,null,{"$f":"SUM(L4:L17)","v":0}]
["2020-05-01",null,null,null,null,null,null,"Symbol","Zestaw zawiera","L. szt.","Cena brutto","Wartość brutto"]
["Aby utworzyć załącznik 4a, obsługa MAKR musi być włączona",null,null,null,null,null,null,"PS-3201","Bezprzewodowy czujnik temperatury",null,461,{"$f":"K4*J4","v":0}]
[null,null,null,null,null,null,null,"PS-3204","Bezprzewodowy czujnik pH",null,697,0]
[null,null,null,"RAZEM brutto",{"$f":"E8+L2+L19+L42","v":0},null,null,"PS-3514","Sonda pH do powierzchni płaskich",null,391,0]
[null,null,null,null,null,null,null,"PS-3210","Bezprzewodowy czujnik konduktywności",null,997,0]
["FIZYKA",null,null,null,{"$f":"SUM(E10:E30)","v":0},null,null,"PS-3208","Bezprzewodowy czujnik CO2",null,2006,0]
["Symbol","Zestaw zawiera","L. szt.","Cena brutto","Wartość brutto",null,null,"PS-3545","Osłona wodoodporna do czujnika CO2",null,198,0]
["ME-5718","Tor metalowy 1,2 m z 2 wózkami SMART - zestaw z akcesoriami",null,4628,{"$f":"D10*C10","v":0},null,null,"PS-3203","Bezprzewodowy czujnik ciśnienia",null,890,0]
["PS-3201","Bezprzewodowy czujnik temperatury",null,461,0,null,null,"PS-3217","Bezprzewodowy czujnik tlenu",null,1860,0]
["PS-3202","Bezprzewodowy czujnik siły i przyspieszenia",null,1018,0,null,null,"PS-3224","Bezprzewodowy czujnik tlenu rozpuszczonego",null,2906,0]
["PS-3219","Bezprzewodowy czujnik ruchu",null,1013,0,null,null,"PS-3202","Bezprzewodowy czujnik siły i przyspieszenia",null,1018,0]
["PS-3203","Bezprzewodowy czujnik ciśnienia",null,890,0,null,null,"PS-2400-DIG","Program SPARKvue do obsługi czujników i doświadczeń - licencja bezterminowa na wszystkie komputery w placówce (cyfr.)",null,2579,0]
["EM-3535","Model obwodu prądu stałego - podstawowy",null,1672,0,null,null,"PS-3500","Adapter USB Bluetooth 4.0",null,134,0]
["EM-3534","Bezprzewodowy moduł amperomierza",null,670,0,null,null,"SMART","Monitor Interaktywny",null,7500,0]
["PS-3211","Bezprzewodowy czujnik napięcia elektrycznego",null,627,0,null,null,"ACER","Laptop",null,3000,0]
["EM-3533","Bezprzewodowy moduł generatora sygnału AC/DC ",null,1335,0]
["PS-3212","Bezprzewodowy czujnik natężenia prądu",null,745,0,null,null,"BIOLOGIA",null,null,null,{"$f":"SUM(L21:L40)","v":0}]
["PS-3213","Bezprzewodowy czujnik światła",null,708,0,null,null,"Symbol","Zestaw zawiera","L. szt.","Cena brutto","Wartość brutto"]
["PS-3221","Bezprzewodowy 3-osiowy czujnik pola magnetycznego",null,745,0,null,null,"PS-3201","Bezprzewodowy czujnik temperatury",null,461,{"$f":"K21*J21","v":0}]
["OS-8515C","Zestaw do optyki - podstawowy",null,4285,0,null,null,"PS-3204","Bezprzewodowy czujnik pH",null,697,0]
["PS-3220","Bezprzewodowy czujnik ruchu obrotowego",null,1769,0,null,null,"PS-3514","Sonda pH do powierzchni płaskich",null,391,0]
["ME-1246","Wyświetlacz wektorów do wózka SMART",null,675,0,null,null,"PS-3208","Bezprzewodowy czujnik CO2",null,2006,0]
["PS-3225","Bezprzewodowa fotobramka podwójna",null,740,0,null,null,"PS-3213","Bezprzewodowy czujnik światła",null,708,0]
["ME-6816","Pojemniki ilustrujące cyrkulację i konwekcję",null,750,0,null,null,"PS-3217","Bezprzewodowy czujnik tlenu",null,1860,0]
["PS-2400-DIG","Program SPARKvue do obsługi czujników i doświadczeń - licencja bezterminowa na wszystkie komputery w placówce (cyfr.)",null,2579,0,null,null,"PS-3207","Bezprzewodowy czujnik tętna wysiłkowy",null,788,0]
["PS-3500","Adapter USB Bluetooth 4.0",null,134,0,null,null,"PS-3218","Bezprzewodowy czujnik ciśnienia krwi",null,997,0]
["SMART","Monitor Interaktywny",null,7500,0,null,null,"PS-2163","PASPORT Czujnik wilgotności gleby                                                                       ",null,1570,0]
["ACER","Laptop",null,3000,0,null,null,"PS-3200","Interfejs AirLink",null,552,0]
[null,null,null,null,null,null,null,"PS-2187","PASPORT Czujnik częstości oddechu",null,2006,0]
[null,null,null,null,null,null,null,"ME-6667","Eko-komora",null,386,0]
[null,null,null,null,null,null,null,"PS-2111-FR","PASPORT Czujnik EKG (UE)",null,1490,0]
["UWAGA!    Przeczytaj ważne uwagi - LEGENDA UŻYTYCH KOLORÓW",null,null,null,null,null,null,"PS-2109","PASPORT Czujnik poziomu/natężenia dźwięku",null,1254,0]
[null,null,null,null,null,null,null,"PS-3215","Bezprzewodowy kolorymetr i czujnik zmętnienia",null,1136,0]
["Zalecamy zamawiać parzystą liczbę czujników, z uwagi na specyfikę doświadczeń do przeprowadzenia",null,null,null,null,null,null,"PS-2521B","Pojemnik do fotosyntezy",null,670,0]
["Program do obsługi czujników należy wpisać TYLKO W JEDNYM przedmiocie (jest dla całej szkoły)",null,null,null,null,null,null,"PS-2400-DIG","Program SPARKvue do obsługi czujników i doświadczeń - licencja bezterminowa na wszystkie komputery w placówce (cyfr.)",null,2579,0]
["Zamówić TYLKO DO STARSZYCH LUB STACJONARNYCH komputerów, które nie obsługują Bluetooth 4.0",null,null,null,null,null,null,"PS-3500","Adapter USB Bluetooth 4.0",null,134,0]
["Te elementy należy zamawiać albo RAZEM albo wcale",null,null,null,null,null,null,"SMART","Monitor Interaktywny",null,7500,0]
["Jeżeli zamówiono model obwodu z modułem amperomierza - ten element jest niepotrzebny",null,null,null,null,null,null,"ACER","Laptop",null,3000,0]
["Zdecydowanie polecany, ale nie obowiązkowy element (wspomaga także naukę programowania)"]
["Interjejs AirLink zamówić TYLKO, gdy zamawia się czujniki z nazwą PASPORT (może być jeden)",null,null,null,null,null,null,"GEOGRAFIA",null,null,null,{"$f":"SUM(L44:L51)","v":0}]
["Do fizyki proponujemy w pierwszej kolejności zamówić tor z wózkami pomiarowymi SMART. Jest to",null,null,null,null,null,null,"Symbol","Zestaw zawiera","L. szt.","Cena brutto","Wartość brutto"]
["kompletny zestaw do przeprowadzenia wszystkich doświadczeń z mechaniki (kinematyki i dynamiki,",null,null,null,null,null,null,"PS-3209","Bezprzewodowy czujnik pogody z GPS",null,1651,{"$f":"K44*J44","v":0}]
["ruchu postępowego i obrotowego). Zastępuje wszystkie inne czujniki związane z mechaniką. Jest",null,null,null,null,null,null,"PS-3553","Akcesoria wiatromierza do czujnika pogody",null,322,0]
["bardzo ważny z punktu widzenia dydaktycznego, bo mechanika jest pierwszym tematem z fizyki",null,null,null,null,null,null,"PS-3213","Bezprzewodowy czujnik światła",null,708,0]
["przerabianym w szkole. Od tego zależy, czy młodzież polubi fizykę do końca szkoły.",null,null,null,null,null,null,"PS-3201","Bezprzewodowy czujnik temperatury",null,461,0]
[null,null,null,null,null,null,null,"PS-2400-DIG","Program SPARKvue do obsługi czujników i doświadczeń - licencja bezterminowa na wszystkie komputery w placówce (cyfr.)",null,2579,0]
[null,null,null,null,null,null,null,"PS-3500","Adapter USB Bluetooth 4.0",null,134,0]
[null,null,null,null,null,null,null,"SMART","Monitor Interaktywny",null,7500,0]
[null,null,null,null,null,null,null,"ACER","Laptop",null,3000,0]

{"sheet":"Załącznik 4a","index":1,"n_rows":40,"n_cols":16,"rows_kept":40,"cut":false,"hidden":false,"merged":[[34,0,34,2],[34,4,34,6],[34,8,34,10],[34,12,34,14],[39,1,39,10],[27,0,27,2],[28,0,28,2],[29,0,29,2],[27,4,27,6],[28,4,28,6],[32,0,32,2],[32,4,32,6],[32,8,32,10],[32,12,32,14],[33,0,33,2],[33,4,33,6],[33,8,33,10],[33,12,33,14],[30,0,30,2],[30,4,30,6],[30,8,30,10],[30,12,30,14],[31,0,31,2],[31,4,31,6],[31,8,31,10],[31,12,31,14],[25,0,25,2],[25,4,25,6],[25,8,25,10],[25,12,25,14],[26,0,26,2],[26,4,26,6],[26,8,26,10],[26,12,26,14],[29,4,29,6],[27,8,27,10],[28,8,28,10],[29,8,29,10],[27,12,27,14],[28,12,28,14],[29,12,29,14],[23,0,23,2],[23,4,23,6],[23,8,23,10],[23,12,23,14],[24,0,24,2],[24,4,24,6],[24,12,24,14],[20,0,20,2],[20,4,20,6],[21,0,21,2],[21,4,21,6],[21,8,21,10],[22,0,22,2],[22,4,22,6],[22,8,22,10],[20,12,20,14],[21,12,21,14],[22,12,22,14],[24,8,24,10],[18,0,18,2],[18,4,18,6],[18,8,18,10],[18,12,18,14],[19,0,19,2],[19,4,19,6],[20,8,20,10],[16,0,16,2],[16,4,16,6],[16,8,16,10],[16,12,16,14],[17,0,17,2],[17,4,17,6],[17,8,17,10],[17,12,17,14],[19,12,19,14],[19,8,19,10],[15,0,15,2],[15,4,15,6],[15,8,15,10],[15,12,15,14],[12,0,12,2],[12,4,12,6],[12,8,12,10],[12,12,12,14],[13,0,13,2],[13,4,13,6],[13,12,13,14],[14,0,14,2],[13,8,13,10],[14,8,14,10],[14,4,14,6],[14,12,14,14],[3,2,3,13],[5,1,5,14],[7,0,7,15],[8,0,8,15],[9,0,9,15],[11,0,11,3],[11,4,11,7],[11,8,11,11],[11,12,11,15]]}
["Załącznik nr 4a"]
[]
[]
[null,null,"Nazwa Szkoły: ____________________________________________________________"]
[]
[null,"Wykaz pomocy dydaktycznych zakupionych w roku bieżącym lub planowanych do zakupienia na wyposażenie szkoły"]
[]
["Proszę o nie wpisywanie mebli do wykazu. "]
["Możliwy jest zakup sprzętu szkolnego niezbędnego do realizacji postawy programowej z danego przedmiotu (np. dygestorium, stół demonstracyjny, szafka na chemikalia) "]
[]
[]
["geografia",null,null,null,"biologia",null,null,null,"fizyka",null,null,null,"chemia"]
["pomoce dydaktyczne",null,null,"koszty\n(w zł*)","pomoce dydaktyczne",null,null,"koszty\n(w zł*)","pomoce dydaktyczne",null,null,"koszty\n(w zł*)","pomoce dydaktyczne",null,null,"koszty\n(w zł*)"]
[]
[]
[]
[]
[]
[]
[]
[]
[]
[]
[]
[]
[]
[]
[]
[]
[]
[]
[]
[]
[]
[null,null,null,{"$f":"SUM(D14:D34)","v":0},null,null,null,{"$f":"SUM(H14:H34)","v":0},null,null,null,{"$f":"SUM(L14:L34)","v":0},null,null,null,{"$f":"SUM(P14:P34)","v":0}]
[]
["* po zaokrągleniu do pełnych złotych"]
[]
[]
[null,"Podpis dyrektora szkoły: ___________________________"]